[Event "Kathmandu Open 2018"]
[Site "Kathmandu"]
[Date "2018.04.15"]
[Round "7"]
[White "Tamang Thendup"]
[Black "Neelash Saha"]
[Result "0-1"]
[ECO "B22"]
[WhiteElo "1953"]
[BlackElo "2212"]
[Annotator "ChessBase"]
[PlyCount "106"]
[EventDate "2018.??.??"]
[EventType "swiss"]
[EventCountry "NEP"]
[SourceTitle "playchess.com"]
[Source "ChessBase"]
[SourceQuality "1"]
[TimeControl "5400+30"]

1. e4 c5 2. c3 Nf6 3. e5 Nd5 4. d4 cxd4 5. cxd4 d6 6. Nf3 Nc6 7. Bc4 Nb6 8. Bb5 Bd7 9. exd6 e6 10. Nc3 Bxd6 11. O-O Nb4 12. Bg5 Be7 13. Bxd7+ Qxd7 14. Ne5 Qd8 15. Bxe7 Qxe7 16. a3 N4d5 17. Nxd5 Nxd5 18. Qa4+ Kf8 19. Rac1 g6 20. Rc2 Kg7 21. Rfc1 Rhd8 22. Nf3 Rd6 23. Qb5 Rad8 24. Qe2 f6 25. Qe4 R8d7 26. h4 Qf7 27. g3 Ne7 28. Re1 Nc6 29. Kg2 h5 30. Rce2 Qg8 31. Qc2 Ne7 32. Qb3 Rb6 33. Qa4 Rc7 34. Rc2 Rxc2 35. Qxc2 Qd8 36. Re2 Rd6 37. Qb3 Qd7 38. Rd2 Nf5 39. Qc3 Ne7 40. Re2 Qc6 41. Qxc6 Nxc6 42. Rd2 Rd5 43. Kf1 g5 44. hxg5 fxg5 45. Re2 Kf6 46. Rc2 g4 47. Nh4 Rxd4 48. Ng2 e5 49. Ne3 Ke6 50. Rc5 Rd2 51. b4 Rd3 52. b5 Nd4 53. Rc7 Rxa3 0-1

[Event "Kathmandu Open 2018"]
[Site "Kathmandu"]
[Date "2018.04.15"]
[Round "7"]
[White "Chaulagain, Harichandra"]
[Black "Pandey, Aashish"]
[Result "1-0"]
[ECO "B02"]
[WhiteElo "1812"]
[BlackElo "1505"]
[Annotator "NA RC"]
[PlyCount "59"]
[EventDate "2018.??.??"]
[EventType "swiss"]
[EventCountry "NEP"]
[SourceTitle "playchess.com"]
[Source "ChessBase"]
[SourceQuality "1"]
[TimeControl "5400+30"]

1. e4 d5 2. exd5 Nf6 3. Nc3 Nxd5 4. Bc4 Nxc3 5. Qf3 e6 6. dxc3 Bd6 7. Nh3 {B02: Alekhine's Defence: Chase Variation and lines with early Nc3} (7. Ne2 Nd7 8. Qh5 O-O 9. Bg5 Qe8 10. O-O-O Nb6 11. Bd3 f5 12. Qh4 e5 13. f3 Be6 14. g4 Qa4 15. gxf5 Qxh4 16. Bxh4 Bxf5 {0-1 (35) Moliboga,V (2310)-Sergeev,V (2444) Lvov 2017}) 7... h6 $146 ({Predecessor:} 7... Nd7 8. Bg5 Ne5 9. Qh5 Qd7 10. Be2 Qa4 11. Bf4 Nc6 12. Bxd6 cxd6 13. Ng5 Qf4 14. Nxh7 Bd7 {½-½ (31) Barhudarian,R (2327)-Pimenov,R (2189) St Petersburg 2008}) 8. Bf4 Qf6 9. Qe3 e5 10. Bg3 Bxh3 11. gxh3 Nc6 12. Bb5 O-O 13. h4 Ne7 14. Bd3 h5 15. O-O-O Nf5 16. Qe4 g6 17. Rhg1 Nxg3 18. fxg3 b6 19. Rdf1 Qe7 20. Bc4 Rad8 21. Qxg6+ Kh8 22. Qxh5+ Kg7 23. Qg4+ Kh8 {[%emt 0:01:55]} 24. Rf5 {[%emt 0:01:33]} f6 {[%emt 0:01:57]} 25. Rh5+ Qh7 26. Bd3 f5 27. Bxf5 Qxh5 28. Qxh5+ Kg7 29. Qg6+ Kh8 30. Qh7# 1-0

[Event "Kathmandu Open 2018"]
[Site "Kathmandu"]
[Date "2018.04.15"]
[Round "7"]
[White "Bhagyashree Patil"]
[Black "Srijit Paul"]
[Result "0-1"]
[ECO "B03"]
[WhiteElo "1734"]
[BlackElo "2351"]
[Annotator "NA"]
[PlyCount "94"]
[EventDate "2018.??.??"]
[EventType "swiss"]
[EventCountry "NEP"]
[SourceTitle "playchess.com"]
[Source "ChessBase"]
[SourceQuality "1"]
[TimeControl "5400+30"]

{[%evp 32,89,36,26,33,35,24,25,33,29,61,56,42,39,42,39,41,16,38,0,18,-118,-91,-122,-151,-135,-92,-104,-116,-103,-95,-116,-89,-88,-64,-62,0,0,0,0,64,63,63,60,61,20,52,0,0,0,13,0,14,0,0,-60,-61,-85,-132,-134]} 1. e4 Nf6 2. e5 Nd5 3. d4 Nb6 4. c4 d6 5. exd6 exd6 6. Bd3 Nc6 7. Ne2 Nb4 {B03: Alekhine's Defence: Four Pawns Attack} (7... g6 8. Nbc3 Bg7 9. Be3 O-O 10. a3 d5 11. c5 Nc4 12. Bxc4 dxc4 13. O-O Bf5 14. Re1 Re8 15. b3 {1-0 (27) Shirov,A (2641)-Sveshnikov,V (2367) Riga 2018}) 8. Nbc3 Nxd3+ 9. Qxd3 Be7 10. O-O O-O 11. Be3 g6 12. b3 Bf6 13. Rad1 Bf5 $146 ({Find the theoretical novelty and annotate with similar games:} 13... Bg7 14. Ng3 f5 15. f4 c6 16. d5 c5 17. a3 Nd7 18. Rfe1 {0-1 (36) Nguyen,D (2032)-Trombik,K (2143) Frydek Mistek 2009}) 14. Qd2 d5 15. c5 Nc8 {[%emt 0:18:36]} 16. Ng3 {[%emt 0:39:58]} Ne7 {[%emt 0:20:25]} 17. Bg5 Bxg5 {[%emt 0:20:35]} 18. Qxg5 {[%emt 0:43:22]} f6 {[%emt 0:20:41]} 19. Qd2 {[%emt 0:46:23]} Qd7 {[%emt 0:22:10]} 20. Rfe1 {[%emt 0:50:22]} a6 {[%emt 0:29:52]} 21. Re3 {[%emt 0:56:35]} Nc6 {[%emt 0:30:00]} 22. Rde1 {[%emt 0:57:56]} g5 {[%emt 0:30:13]} 23. Nxf5 {[%emt 1:02:34]} Qxf5 {[%emt 0:30:14]} 24. Re6 {[%emt 1:08:49]} Rad8 {[%emt 0:31:02]} 25. Qe3 {[%emt 1:14:08]} Rf7 {[%emt 0:50:39]} 26. f3 {[%emt 1:19:19]} (26. Ne2 $11) 26... Ne5 $1 {[%emt 0:51:36]} 27. Rxe5 {[%emt 1:21:50]} fxe5 28. Qxe5 {[%emt 1:21:51]} h6 {[%emt 0:52:01]} 29. h3 {[%emt 1:27:00]} Qxe5 30. Rxe5 {[%emt 1:27:02]} c6 {[%emt 0:54:13]} 31. Kf2 {[%emt 1:28:11]} Rdd7 {[%emt 0:54:14]} 32. b4 {[%emt 1:30:01] [#]} a5 $1 {[%emt 0:56:28]} 33. b5 {[%emt 1:31:03]} cxb5 {[%emt 0:56:48]} ({Better is} 33... Rfe7 $15 34. Rxe7 Rxe7) 34. Nxb5 {[%emt 1:31:57]} Rfe7 {[%emt 0:57:06]} 35. Rf5 $1 {[%emt 1:33:25]} Kg7 {[%emt 0:58:48]} 36. Nd6 {[%emt 1:34:13]} Re6 {[%emt 1:00:50]} 37. Rxd5 {[%emt 1:35:03]} Kg6 {[%emt 1:01:03] [#]} 38. g4 {[%emt 1:37:00]} ({White should try} 38. g3 $1 $16) 38... b6 {[%emt 1:01:55]} 39. Rf5 {[%emt 1:37:35]} bxc5 {[%emt 1:03:11]} 40. dxc5 {[%emt 1:37:36]} Kg7 {[%emt 1:05:07]} 41. Rd5 {[%emt 1:38:53]} Kg6 {[%emt 1:05:44]} 42. Rf5 {[%emt 1:39:14]} a4 {[%emt 1:06:23]} 43. a3 {[%emt 1:42:15]} ({White should play} 43. Rd5 $11) 43... Rde7 {[%emt 1:09:40]} 44. Rd5 {[%emt 1:45:05]} Re2+ {[%emt 1:10:09]} 45. Kg3 $17 {[%emt 1:46:00]} Ra2 46. Ne4 Rxa3 47. c6 Rxe4 0-1

[Event "Kathmandu Open 2018"]
[Site "Kathmandu"]
[Date "2018.04.16"]
[Round "8"]
[White "Neelash Saha"]
[Black "Navalgund, Niranjan"]
[Result "1-0"]
[ECO "E01"]
[WhiteElo "2212"]
[BlackElo "2286"]
[Annotator "RC"]
[PlyCount "119"]
[EventDate "2018.??.??"]
[EventType "swiss"]
[EventCountry "NEP"]
[SourceTitle "playchess.com"]
[Source "ChessBase"]
[SourceQuality "1"]
[TimeControl "5400+30"]

1. d4 Nf6 2. c4 e6 3. g3 d5 4. Nf3 Bb4+ 5. Bd2 Be7 6. Bg2 O-O 7. O-O c6 8. Qc2 b6 9. a4 a5 10. cxd5 cxd5 11. Rc1 Na6 12. Na3 Bb7 13. Qb3 Ne4 14. Be1 Nb4 15. Nb5 Rc8 16. Ne5 Nf6 17. Bd2 Ne4 18. Rxc8 Qxc8 19. Bf4 g5 20. Rc1 Qd8 21. Be3 Nd6 22. Bd2 Nxb5 23. axb5 Qd6 24. h4 f6 25. Bxb4 axb4 26. Nc6 gxh4 27. gxh4 Rc8 28. Nxe7+ Qxe7 29. Qg3+ Kf7 30. Ra1 Ra8 31. Rxa8 Bxa8 32. Qb8 Bb7 33. Bh3 e5 34. Bf5 Kg7 35. e3 Kh6 36. Kg2 Qg7+ 37. Kh3 Qe7 38. Qg8 b3 39. Qh8 exd4 40. exd4 Qg7 41. Qxg7+ Kxg7 42. Kg4 Kh6 43. Bd7 Kg6 44. Kf4 Kh5 45. Bc6 Bc8 46. Bxd5 Kxh4 47. Bc6 Kh3 48. d5 Kg2 49. Ke3 Kf1 50. d6 f5 51. d7 f4+ 52. Kxf4 Bxd7 53. Bxd7 Kxf2 54. Be6 Ke2 55. Bxb3 Kd2 56. Ke5 Kc1 57. Kd6 Kxb2 58. Bf7 Kc3 59. Kc6 Kb4 60. Kxb6 1-0

[Event "Kathmandu Open 2018"]
[Site "Kathmandu"]
[Date "2018.04.16"]
[Round "8"]
[White "Jaiswal, Rupesh"]
[Black "Patil, Pratik"]
[Result "1/2-1/2"]
[ECO "A48"]
[WhiteElo "2121"]
[BlackElo "2258"]
[Annotator "ChessBase"]
[PlyCount "56"]
[EventDate "2018.??.??"]
[EventType "swiss"]
[EventCountry "NEP"]
[SourceTitle "playchess.com"]
[Source "ChessBase"]
[SourceQuality "1"]
[TimeControl "5400+30"]

1. d4 Nf6 2. Nf3 g6 3. Bf4 Bg7 4. e3 O-O 5. Be2 d5 6. O-O c5 7. c3 b6 8. Nbd2 Bb7 9. h3 Nc6 10. Ne5 Nd7 11. Nxd7 Qxd7 12. Nf3 Rfe8 13. Bb5 a6 14. Ne5 Qc8 15. Bxc6 Bxc6 16. Qb3 Bb5 17. Rfd1 c4 18. Qc2 f6 19. Nf3 e5 20. Bg3 e4 21. Nd2 Ra7 22. a4 Bc6 23. b3 Qe6 24. bxc4 dxc4 25. Rdb1 Rb7 26. Qd1 f5 27. Qe2 b5 28. axb5 axb5 {-error} 1/2-1/2

[Event "Kathmandu Open 2018"]
[Site "Kathmandu"]
[Date "2018.04.16"]
[Round "8"]
[White "Prudhvi Kumar V"]
[Black "Gajwa Ankit"]
[Result "0-1"]
[ECO "E68"]
[WhiteElo "1836"]
[BlackElo "2292"]
[Annotator "NA RC"]
[PlyCount "64"]
[EventDate "2018.??.??"]
[EventType "swiss"]
[EventCountry "NEP"]
[SourceTitle "playchess.com"]
[Source "ChessBase"]
[SourceQuality "1"]
[TimeControl "5400+30"]

1. Nf3 Nf6 2. c4 g6 3. g3 Bg7 4. Bg2 O-O 5. d4 d6 6. O-O Nbd7 7. Nc3 e5 8. e4 c6 9. b3 exd4 10. Nxd4 Re8 11. Re1 Nc5 12. h3 a5 13. Bf4 Nh5 14. Be3 Nf6 15. Qc2 Qb6 16. Rad1 Bf8 17. Nde2 Nfd7 18. f4 Qc7 19. Bf2 h5 20. Nd4 Nf6 21. Nf3 b6 22. Bxc5 bxc5 23. e5 Bf5 24. Qf2 dxe5 25. Nxe5 Re6 26. Qf3 Rae8 27. Kf1 Qc8 28. Nxc6 Bxh3 29. Rxe6 Qxe6 30. Bxh3 Qxh3+ 31. Qg2 Qf5 32. Ne5 Rxe5 0-1

[Event "Kathmandu Open 2018"]
[Site "Kathmandu"]
[Date "2018.04.17"]
[Round "9"]
[White "L'Ami, Alina"]
[Black "Suvradeepta, Das"]
[Result "1-0"]
[ECO "A56"]
[WhiteElo "2316"]
[BlackElo "1986"]
[Annotator "ChessBase"]
[PlyCount "69"]
[EventDate "2018.??.??"]
[EventType "swiss"]
[EventCountry "NEP"]
[SourceTitle "playchess.com"]
[Source "ChessBase"]
[SourceQuality "1"]
[TimeControl "5400+30"]

1. d4 Nf6 2. c4 c5 3. d5 g6 4. Nc3 Bg7 5. e4 d6 6. h3 O-O 7. Bd3 e5 8. Nge2 Nbd7 9. g4 Rb8 10. Ng3 Ne8 11. h4 Nc7 12. Be3 Nf6 13. f3 Bd7 14. a4 a6 15. a5 b5 16. axb6 Rxb6 17. b3 a5 18. Bc2 Na6 19. Qd2 Nb4 20. Bd1 Ne8 21. Rxa5 f5 22. Bg5 Bf6 23. gxf5 gxf5 24. Nxf5 Bxf5 25. exf5 Bxg5 26. Qxg5+ Qxg5 27. hxg5 Rxf5 28. Ra8 Rf8 29. Ne4 Kg7 30. Ra7+ Rf7 31. Rxh7+ Kxh7 32. Rxf7+ Kg6 33. Rf8 Nc7 34. Rf6+ Kg7 35. Nxd6 1-0